fUST/lending_fUST_20251021
["ID","MTS","AMOUNT","RATE_DAILY","PERIOD"]
[391986612,1761059444074,-1437.46,0.00034674,2]
[391986614,1761059444138,-1437.46,0.00034674,2]
[391986616,1761059444200,-1437.46,0.00034674,2]
[391986617,1761059444265,-1437.46,0.00034674,2]
[391986618,1761059444326,-1437.46,0.00034674,2]
[391986622,1761059444388,-1437.46,0.00034674,2]
[391986623,1761059444450,-1437.46,0.00034674,2]
[391986624,1761059444515,-1437.46,0.00034674,2]
[391986626,1761059444577,-1437.46,0.00034674,2]
[391986627,1761059444640,-1437.46,0.00034674,2]
[391986628,1761059444704,-1437.46,0.00034674,2]
[391986629,1761059444768,-1437.47,0.00034674,2]
[391986630,1761059444829,-540.88665539,0.00034674,2]
[391986631,1761059444894,-104097.27897775,0.00034675,5]
[391986632,1761059444961,-48166.32516313,0.00031358,2]
[391986633,1761059444971,-13062.85586157,0.00034675,5]
[391986634,1761059444983,-2487.29740737,0.00034675,5]
[391986635,1761059445020,-1575.9,0.00034655,10]
[391986636,1761059445032,-273.4,0.00034655,10]
[391986637,1761059445042,-601.14146263,0.00034675,5]
[391986638,1761059445204,-379749.42629068,0.00034675,5]
[391986639,1761059445214,-500.0,0.00034675,30]
[391986640,1761059445224,-665.1,0.00034678,60]
[391986641,1761059445234,-1246.08,0.000347,7]
[391986642,1761059445243,-665.1,0.00034778,60]
[391986643,1761059445253,-8667.99581928,0.00034787,2]
[391986644,1761059445269,-349.11276,0.000348,120]
[391986645,1761059445278,-200.0,0.000348,120]
[391986646,1761059445288,-3172.0,0.00034818,2]
[391986647,1761059445298,-665.1,0.00034878,60]
[391986648,1761059445307,-500.0,0.00034949,30]
[391986649,1761059445316,-151.8291059,0.00034973,30]
[391986650,1761059445325,-151.8291059,0.00034973,30]
[391986651,1761059445334,-151.8291059,0.00034973,30]
[391986652,1761059445344,-151.8291059,0.00034973,30]
[391986653,1761059445354,-151.8291059,0.00034973,30]
[391986654,1761059445363,-151.8291059,0.00034973,30]
[391986655,1761059445372,-151.8291059,0.00034973,30]
[391986656,1761059445382,-151.82,0.00034973,30]
[391986657,1761059445391,-665.1,0.00034978,60]
[391986658,1761059445402,-255.45505438,0.0003499,2]
[391986659,1761059445411,-601.22791924,0.00034995,2]
[391986660,1761059445421,-999.97,0.00035,2]
[391986661,1761059445430,-1000.0,0.00035,2]
[391986662,1761059445441,-1000.0,0.00035,2]
[391986663,1761059445453,-999.99,0.00035,2]
[391986664,1761059445462,-999.99,0.00035,2]
[391986665,1761059445471,-999.99,0.00035,2]
[391986666,1761059445482,-1000.0,0.00035,2]
[391986667,1761059445493,-250.0,0.00035,7]
[391986668,1761059445503,-151.0,0.00035,15]
[391986669,1761059445512,-151.0,0.00035,20]
[391986670,1761059445527,-1692.0,0.00035043,120]
[391986671,1761059445537,-1692.0,0.00035053,120]
[391986672,1761059445547,-8667.99581928,0.00035062,2]
[391986673,1761059445557,-60675.970735,0.00035063,2]
[391986674,1761059445566,-1692.0,0.00035063,120]
[391986675,1761059445576,-403.05172659,0.00035063,120]
[391986676,1761059445585,-160.0,0.00035063,120]
[391986677,1761059445595,-370000.0,0.00035073,2]
[391986678,1761059445604,-665.1,0.00035078,60]
[391986679,1761059445614,-1015.3,0.000351,14]
[391986680,1761059445623,-665.1,0.00035178,60]
[391986681,1761059445633,-1016.17175351,0.000352,120]
[391986682,1761059445643,-169.98413699,0.000352,120]
[391986683,1761059445652,-242.628741,0.000352,120]
[391986684,1761059445662,-181.09763267,0.000352,120]
[391986685,1761059445671,-257.97905682,0.000352,120]
[391986686,1761059445680,-192.76534299,0.000352,120]
[391986687,1761059445691,-503.36300446,0.00035221,5]
[391986688,1761059445700,-1000.0,0.00035221,4]
[391986689,1761059445710,-1000.0,0.00035221,5]
[391986690,1761059445719,-875.07290591,0.00035221,5]
[391986691,1761059445728,-500.0,0.00035223,30]
[391986692,1761059445738,-665.19,0.00035278,60]
[391986693,1761059445748,-8667.99581928,0.0003529,2]
[391986694,1761059445758,-1000.0,0.000353,2]
[391986695,1761059445770,-2999.0,0.00035349,120]
[391986696,1761059445780,-500.0,0.00035497,30]
[391986697,1761059445790,-174.95,0.00035597,60]
[391986698,1761059445799,-1000.0,0.000356,2]
[391986699,1761059445808,-1060.0,0.000356,14]
[391986700,1761059445817,-215.88419293,0.00035616,2]
[391986701,1761059445827,-1360.306728,0.00035661,2]
[391986702,1761059445836,-174.95,0.00035697,60]
[391986703,1761059445846,-1180.48912081,0.00035761,30]
[391986704,1761059445855,-1500.0,0.00035768,5]
[391986705,1761059445864,-500.0,0.00035771,30]
[391986706,1761059445873,-174.95,0.00035797,60]
[391986707,1761059445883,-174.95,0.00035897,60]
[391986708,1761059445892,-1000.0,0.000359,2]
[391986709,1761059445902,-166.135178,0.00035942,2]
[391986710,1761059445911,-151.145192,0.00035942,2]
[391986711,1761059445921,-160.804175,0.00035942,2]
[391986712,1761059445931,-163.900878,0.00035942,2]
[391986713,1761059445941,-174.95,0.00035997,60]
[391986714,1761059445950,-151.0,0.00036,15]
[391986715,1761059445959,-1998.46,0.00036025,3]
[391986716,1761059445968,-999.22,0.00036025,3]
[391986719,1761059445977,-499.62,0.00036025,3]
[391986722,1761059445987,-2999.0,0.00036034,120]
[391986724,1761059445996,-720.0,0.00036043,30]
[391986725,1761059446005,-500.0,0.00036045,30]
[391986727,1761059446017,-174.95,0.00036097,60]
[391986728,1761059446027,-1246.08,0.000361,7]
[391986729,1761059446036,-174.95,0.00036197,60]
[391986730,1761059446047,-1000.0,0.000362,2]
[391986731,1761059446056,-166.135178,0.00036222,2]
[391986732,1761059446066,-151.145192,0.00036222,2]
[391986733,1761059446075,-160.804175,0.00036222,2]
[391986734,1761059446084,-161.151474,0.00036222,2]
[391986735,1761059446093,-163.900878,0.00036222,2]
[391986736,1761059446102,-178.302231,0.00036222,2]
[391986737,1761059446111,-159.885584,0.00036222,2]
[391986738,1761059446120,-162.231959,0.00036222,2]
[391986740,1761059446130,-150.0,0.00036241,5]
[391986742,1761059446139,-500.71478119,0.00036241,5]
[391986743,1761059446148,-174.95,0.00036297,60]
[391986745,1761059446157,-1016.17175351,0.000363,120]
[391986748,1761059446167,-169.98413699,0.000363,120]
[391986749,1761059446177,-242.628741,0.000363,120]
[391986751,1761059446186,-257.97905682,0.000363,120]
[391986753,1761059446195,-2000.0,0.00036316,5]
[391986755,1761059446204,-500.0,0.00036319,30]
[391986757,1761059446213,-783.0,0.00036322,2]
[391986760,1761059446223,-282.23,0.00036322,2]
[391986763,1761059446232,-174.95,0.00036397,60]
[391986766,1761059446241,-174.95,0.00036497,60]
[391986769,1761059446251,-575.73,0.000365,2]
[391986772,1761059446260,-576.91,0.00036593,30]
[391986774,1761059446273,-174.95,0.00036597,60]
[391986778,1761059446282,-151.0,0.000366,11]
[391986781,1761059446292,-174.95,0.00036697,60]
[391986784,1761059446301,-2999.0,0.00036719,120]
[391986787,1761059446310,-340.11853006,0.00036789,5]
[391986788,1761059446320,-174.95,0.00036797,60]
[391986789,1761059446329,-2500.0,0.00036864,5]
[391986790,1761059446338,-174.95,0.00036897,60]
[391986791,1761059446347,-174.95,0.00036997,60]
[391986792,1761059446356,-160.0,0.00037,30]
[391986793,1761059446365,-403.05172659,0.00037,30]
[391986794,1761059446376,-5000.0,0.00037037,4]
[391986796,1761059446385,-174.95,0.00037097,60]
[391986798,1761059446395,-174.95,0.00037197,60]
[391986800,1761059446404,-151.0,0.000372,17]
[391986802,1761059446413,-1060.0,0.000372,14]
[391986804,1761059446422,-174.95,0.00037297,60]
[391986805,1761059446431,-174.95,0.00037397,60]
[391986807,1761059446441,-1016.17175351,0.000374,120]
[391986808,1761059446453,-242.628741,0.000374,120]
[391986809,1761059446462,-257.97905682,0.000374,120]
[391986811,1761059446471,-247.75451626,0.00037404,120]
[391986813,1761059446482,-174.95,0.00037497,60]
[391986814,1761059446491,-1246.08,0.000375,7]
[391986816,1761059446500,-174.95,0.00037597,60]
[391986818,1761059446510,-174.95,0.00037697,60]
[391986819,1761059446522,-1444.0,0.00037753,120]
[391986820,1761059446531,-174.95,0.00037797,60]
[391986821,1761059446540,-151.0,0.000378,14]
[391986822,1761059446550,-174.95,0.00037897,60]
[391986823,1761059446561,-540.88665539,0.00037953,2]
[391986824,1761059446570,-174.95,0.00037997,60]
[391986825,1761059446579,-70438.2024556,0.00037998,30]
[391986826,1761059446588,-174.95,0.00038097,60]
[391986827,1761059446597,-11885.53797228,0.00038143,15]
[391986828,1761059446607,-174.95,0.00038197,60]
[391986829,1761059446616,-174.95,0.00038297,60]
[391986830,1761059446625,-174.95,0.00038397,120]
[391986831,1761059446635,-151.0,0.000384,17]
[391986832,1761059446644,-157.45240611,0.00038401,120]
[391986833,1761059446654,-174.95,0.00038497,120]
[391986834,1761059446663,-1016.17175351,0.000385,120]
[391986835,1761059446672,-242.628741,0.000385,120]
[391986836,1761059446681,-257.97905682,0.000385,120]
[391986837,1761059446690,-174.95,0.00038597,120]
[391986838,1761059446700,-174.95,0.00038697,120]
[391986840,1761059446710,-174.95,0.00038797,120]
[391986841,1761059446720,-1060.0,0.000388,14]
[391986842,1761059446730,-174.95,0.00038897,120]
[391986843,1761059446739,-1246.08,0.000389,7]
[391986844,1761059446749,-157.45240611,0.00038927,120]
[391986845,1761059446758,-174.95,0.00038997,120]
[391986846,1761059446770,-151.0,0.00039,20]
[391986847,1761059446779,-1097.0,0.00039093,5]
[391986848,1761059446789,-174.95,0.00039097,120]
[391986849,1761059446798,-2164.0,0.00039148,2]
[391986850,1761059446807,-174.95,0.00039197,120]
[391986851,1761059446816,-174.95,0.00039297,120]
[391986852,1761059446826,-174.95,0.00039397,120]
[391986853,1761059446834,-413.0,0.00039448,120]
[391986854,1761059446844,-157.45240611,0.00039453,120]
[391986855,1761059446853,-174.95,0.00039497,120]
[391986856,1761059446863,-413.0,0.00039518,2]
[391986857,1761059446872,-174.95,0.00039597,120]
[391986858,1761059446882,-151.0,0.000396,15]
[391986859,1761059446891,-864.0,0.00039647,90]
[391986860,1761059446900,-174.95,0.00039697,120]
[391986861,1761059446910,-1016.17175351,0.000397,120]
[391986862,1761059446920,-174.95,0.00039797,120]
[391986863,1761059446929,-151.736,0.00039801,2]
[391986864,1761059446938,-262.513,0.00039801,2]
[391986865,1761059446947,-294.254,0.00039801,2]
[391986866,1761059446957,-983.0,0.00039801,2]
[391986867,1761059446966,-632.0,0.00039801,2]
[391986868,1761059446976,-156.14771043,0.0003989,2]
[391986869,1761059446986,-174.95,0.00039897,120]
[391986870,1761059446996,-157.45240611,0.00039979,120]
[391986871,1761059447006,-174.95,0.00039997,120]
[391986872,1761059447017,-250.0,0.0004,7]
[391986873,1761059447027,-5000.0,0.0004,120]
[391986874,1761059447037,-600.0,0.0004,120]
[391986875,1761059447046,-414.0,0.00040083,120]
[391986876,1761059447056,-174.95,0.00040097,120]
[391986877,1761059447066,-174.95,0.00040197,120]
[391986878,1761059447075,-151.0,0.000402,18]
[391986879,1761059447084,-413.0,0.0004027,120]
[391986880,1761059447093,-174.95,0.00040297,120]
[391986881,1761059447103,-1246.08,0.000403,7]
[391986882,1761059447112,-413.0,0.00040332,2]
[391986883,1761059447121,-174.95,0.00040397,120]
[391986884,1761059447131,-1060.0,0.000404,14]
[391986885,1761059447140,-174.95,0.00040497,120]
[391986886,1761059447150,-157.45240611,0.00040506,120]
[391986887,1761059447160,-413.0,0.0004052,2]
[391986888,1761059447170,-413.0,0.00040566,2]
[391986889,1761059447180,-174.95,0.00040597,120]
[391986890,1761059447190,-413.0,0.00040671,2]
[391986891,1761059447200,-174.95,0.00040697,120]
[391986892,1761059447210,-174.95,0.00040797,120]
[391986893,1761059447220,-151.0,0.000408,20]
[391986894,1761059447229,-174.95,0.00040897,120]
[391986895,1761059447239,-1016.17175351,0.000409,120]
[391986896,1761059447250,-1860.04633139,0.00040982,2]
[391986897,1761059447260,-1000.0,0.00040986,90]
[391986898,1761059447271,-174.95,0.00040997,120]
[391986899,1761059447397,-1206.81129181,0.00041,120]
[391986900,1761059447409,-1115.73404669,0.00041,30]
[391986901,1761059447419,-157.45240611,0.00041032,120]
[391986902,1761059447429,-174.95,0.00041097,120]
[391986903,1761059447442,-174.95,0.00041197,120]
[391986904,1761059447451,-540.88665539,0.00041231,28]
[391986905,1761059447461,-174.95,0.00041297,120]
[391986906,1761059447470,-4205.0,0.00041345,120]
[391986907,1761059447480,-413.0,0.00041389,2]
[391986908,1761059447490,-174.95,0.00041397,120]
[391986909,1761059447499,-151.0,0.000414,16]
[391986910,1761059447509,-413.0,0.00041403,2]
[391986911,1761059447524,-174.95,0.00041497,120]
[391986912,1761059447534,-413.0,0.00041546,2]
[391986913,1761059447543,-157.45240611,0.00041558,120]
[391986914,1761059447552,-174.95,0.00041597,120]
[391986915,1761059447562,-174.95,0.00041697,120]
[391986916,1761059447571,-1246.08,0.000417,14]
[391986917,1761059447583,-413.0,0.00041722,2]
[391986918,1761059447593,-174.95,0.00041797,120]
[391986919,1761059447602,-166.135178,0.00041811,60]
[391986920,1761059447612,-160.804175,0.00041811,60]
[391986921,1761059447622,-161.151474,0.00041811,60]
[391986922,1761059447632,-163.900878,0.00041811,60]
[391986923,1761059447641,-414.0,0.00041872,2]
[391986924,1761059447650,-174.95,0.00041897,120]
[391986925,1761059447660,-413.0,0.00041961,7]
[391986926,1761059447670,-174.95,0.00041997,120]
[391986927,1761059447680,-5000.0,0.00042,120]
[391986928,1761059447689,-595.0,0.00042,120]
[391986929,1761059447699,-1111.0,0.00042,30]
[391986930,1761059447708,-196.10510069,0.00042027,7]
[391986931,1761059447718,-298.6241254,0.00042044,30]
[391986932,1761059447730,-791.1772209,0.00042044,30]
[391986933,1761059447740,-163.278548,0.00042044,30]
[391986934,1761059447749,-155.3766081,0.00042044,30]
[391986935,1761059447759,-589.8769586,0.00042044,30]
[391986936,1761059447770,-298.6241254,0.00042044,30]
[391986937,1761059447780,-163.278548,0.00042044,30]
[391986938,1761059447791,-589.8769586,0.00042044,30]
[391986939,1761059447800,-298.6241254,0.00042044,30]
[391986940,1761059447810,-589.8769586,0.00042044,30]
[391986941,1761059447819,-589.8769586,0.00042044,30]
[391986942,1761059447829,-589.8769586,0.00042044,30]
[391986943,1761059447839,-589.8769586,0.00042044,30]
[391986944,1761059447848,-589.8769586,0.00042044,30]
[391986945,1761059447858,-589.8769586,0.00042044,30]
[391986946,1761059447867,-589.8769586,0.00042044,30]
[391986947,1761059447876,-589.8769586,0.00042044,30]
[391986948,1761059447886,-173.5511678,0.00042044,30]
[391986949,1761059447895,-190.1756091,0.00042044,30]
[391986950,1761059447905,-161.5660891,0.00042044,30]
[391986951,1761059447914,-153.0,0.00042044,30]
[391986952,1761059447925,-190.1756091,0.00042044,30]
[391986953,1761059447934,-153.0,0.00042044,30]
[391986954,1761059447944,-190.1756091,0.00042044,30]
[391986955,1761059447954,-153.0,0.00042044,30]
[391986956,1761059447964,-153.0,0.00042044,30]
[391986957,1761059447974,-1536.0,0.00042074,5]
[391986958,1761059447984,-157.45240611,0.00042084,120]
[391986959,1761059447993,-174.95,0.00042097,120]
[391986960,1761059448003,-1016.17175351,0.000421,120]
[391986961,1761059448013,-2164.0,0.00042148,2]
[391986962,1761059448026,-175.57857976,0.00042197,120]
[391986963,1761059448035,-414.0,0.00042284,7]
[391986964,1761059448045,-413.0,0.00042288,7]
[391986965,1761059448055,-413.0,0.00042306,2]
[391986966,1761059448065,-564.46,0.00042376,2]
[391986967,1761059448075,-413.0,0.00042416,2]
[391986968,1761059448085,-413.0,0.00042473,2]
[391986969,1761059448094,-413.0,0.00042538,7]
[391986970,1761059448103,-413.0,0.00042552,2]
[391986971,1761059448113,-157.45240611,0.0004261,120]
[391986972,1761059448122,-413.0,0.0004277,7]
[391986973,1761059448132,-150.0,0.00042801,2]
[391986974,1761059448141,-150.0,0.00042801,2]
[391986975,1761059448151,-983.0,0.00042801,2]
[391986976,1761059448161,-632.0,0.00042801,2]
[391986977,1761059448173,-413.0,0.00042861,7]
[391986978,1761059448183,-413.0,0.0004288,7]
[391986979,1761059448192,-1111.0,0.00043,30]
[391986980,1761059448202,-1000.0,0.00043037,8]
[391986981,1761059448211,-157.45240611,0.00043136,120]
[391986982,1761059448221,-413.0,0.00043281,120]
[391986983,1761059448230,-1016.17175351,0.000433,120]
[391986984,1761059448240,-166.135178,0.00043348,60]
[391986985,1761059448250,-160.804175,0.00043348,60]
[391986986,1761059448259,-161.151474,0.00043348,60]
[391986987,1761059448270,-163.900878,0.00043348,60]
[391986988,1761059448279,-178.302231,0.00043348,60]
[391986989,1761059448288,-159.885584,0.00043348,60]
[391986990,1761059448298,-162.231959,0.00043348,60]
[391986991,1761059448308,-1246.08,0.000434,14]
[391986992,1761059448318,-1000.0,0.00043612,90]
[391986993,1761059448327,-157.45240611,0.00043662,120]
[391986994,1761059448336,-500.0,0.00043835,20]
[391986995,1761059448346,-500.0,0.00043835,7]
[391986996,1761059448355,-181.22010289,0.00043835,2]
[391986997,1761059448365,-150.0,0.00043835,30]
[391986998,1761059448374,-1457.6,0.00043835,2]
[391986999,1761059448383,-500.0,0.00043835,120]
[391987000,1761059448393,-500.0,0.00043835,7]
[391987001,1761059448403,-500.0,0.00043835,120]
[391987002,1761059448412,-500.0,0.00043835,120]
[391987003,1761059448422,-500.0,0.00043835,120]
[391987004,1761059448431,-500.0,0.00043835,120]
[391987005,1761059448442,-500.0,0.00043835,7]
[391987006,1761059448456,-500.0,0.00043835,30]
[391987007,1761059448466,-500.0,0.00043835,7]
[391987008,1761059448475,-500.0,0.00043835,120]
[391987009,1761059448484,-500.0,0.00043835,120]
[391987010,1761059448495,-500.0,0.00043835,2]
[391987011,1761059448504,-1320.22,0.00043835,3]
[391987012,1761059448514,-484.80138716,0.00043835,120]
[391987013,1761059448527,-500.0,0.00043835,120]
[391987014,1761059448537,-500.0,0.00043835,120]
[391987015,1761059448547,-500.0,0.00043835,120]
[391987016,1761059448558,-1111.0,0.00044,30]
[391987017,1761059448567,-403.05172659,0.00044,7]
[391987018,1761059448577,-500.0,0.00044109,20]
[391987019,1761059448587,-500.0,0.00044109,7]
[391987020,1761059448596,-150.0,0.00044109,30]
[391987021,1761059448606,-1457.6,0.00044109,2]
[391987022,1761059448615,-500.0,0.00044109,120]
[391987023,1761059448624,-500.0,0.00044109,7]
[391987024,1761059448634,-500.0,0.00044109,120]
[391987025,1761059448644,-500.0,0.00044109,120]
[391987026,1761059448654,-500.0,0.00044109,120]
[391987027,1761059448664,-500.0,0.00044109,120]
[391987028,1761059448674,-582.60249942,0.00044109,7]
[391987029,1761059448683,-500.0,0.00044109,30]
[391987030,1761059448693,-500.0,0.00044109,7]
[391987031,1761059448702,-500.0,0.00044109,120]
[391987032,1761059448712,-500.0,0.00044109,120]
[391987033,1761059448722,-500.0,0.00044109,2]
[391987034,1761059448732,-1320.22,0.00044109,3]
[391987035,1761059448742,-500.0,0.00044109,120]
[391987036,1761059448751,-500.0,0.00044109,120]
[391987037,1761059448761,-500.0,0.00044109,120]
[391987038,1761059448772,-157.45240611,0.00044188,120]
[391987039,1761059448784,-500.0,0.00044383,20]
[391987040,1761059448794,-550.8835734,0.00044383,7]
[391987041,1761059448803,-150.0,0.00044383,30]
[391987042,1761059448814,-1457.6,0.00044383,2]
[391987043,1761059448823,-500.0,0.00044383,120]
[391987044,1761059448833,-333.23628324,0.00044383,7]
[391987045,1761059448843,-500.0,0.00044383,120]
[391987046,1761059448852,-500.0,0.00044383,120]
[391987047,1761059448862,-500.0,0.00044383,120]
[391987048,1761059448871,-500.0,0.00044383,120]
[391987049,1761059448881,-500.0,0.00044383,30]
[391987050,1761059448891,-500.0,0.00044383,7]
[391987051,1761059448901,-500.0,0.00044383,120]
[391987052,1761059448911,-500.0,0.00044383,120]
[391987053,1761059448921,-500.0,0.00044383,2]
[391987054,1761059448931,-1320.22,0.00044383,3]
[391987055,1761059448940,-500.0,0.00044383,120]
[391987056,1761059448950,-500.0,0.00044383,120]
[391987057,1761059448961,-500.0,0.00044383,120]
[391987058,1761059448971,-168.63598432,0.00044508,30]
[391987059,1761059448980,-540.88665539,0.00044509,28]
[391987060,1761059448990,-1016.17175351,0.000446,120]
[391987061,1761059449000,-500.0,0.00044657,20]
[391987062,1761059449010,-150.0,0.00044657,30]
[391987063,1761059449021,-1457.6,0.00044657,2]
[391987064,1761059449031,-500.0,0.00044657,120]
[391987065,1761059449040,-500.0,0.00044657,120]
[391987066,1761059449050,-500.0,0.00044657,120]
[391987067,1761059449059,-500.0,0.00044657,120]
[391987068,1761059449068,-500.0,0.00044657,120]
[391987069,1761059449077,-500.0,0.00044657,30]
[391987070,1761059449088,-500.0,0.00044657,7]
[391987071,1761059449098,-513.18661953,0.00044657,120]
[391987072,1761059449108,-500.0,0.00044657,120]
[391987073,1761059449118,-500.0,0.00044657,2]
[391987074,1761059449128,-1320.22,0.00044657,3]
[391987075,1761059449138,-500.0,0.00044657,120]
[391987076,1761059449148,-500.0,0.00044657,120]
[391987077,1761059449158,-336.12,0.00044657,120]
[391987078,1761059449167,-157.45240611,0.00044714,120]
[391987079,1761059449177,-500.0,0.00044931,20]
[391987080,1761059449187,-189.28462636,0.00044931,30]
[391987081,1761059449197,-1457.6,0.00044931,2]
[391987082,1761059449206,-500.0,0.00044931,120]
[391987083,1761059449216,-500.0,0.00044931,120]
[391987084,1761059449226,-500.0,0.00044931,120]
[391987085,1761059449235,-500.0,0.00044931,120]
[391987086,1761059449245,-500.0,0.00044931,120]
[391987087,1761059449269,-500.0,0.00044931,30]
[391987088,1761059449279,-213.2060973,0.00044931,7]
[391987089,1761059449292,-500.0,0.00044931,120]
[391987090,1761059449302,-500.0,0.00044931,2]
[391987091,1761059449312,-1320.22,0.00044931,3]
[391987092,1761059449321,-500.0,0.00044931,120]
[391987093,1761059449331,-500.0,0.00044931,120]
[391987094,1761059449341,-5000.0,0.00045,120]
[391987095,1761059449350,-1111.0,0.00045,30]
[391987096,1761059449360,-2164.0,0.00045148,2]
[391987097,1761059449370,-1457.6,0.00045205,2]
[391987098,1761059449380,-500.0,0.00045205,120]
[391987099,1761059449390,-500.0,0.00045205,120]
[391987100,1761059449399,-500.0,0.00045205,120]
[391987101,1761059449408,-500.0,0.00045205,120]
[391987102,1761059449418,-500.0,0.00045205,120]
[391987103,1761059449427,-500.0,0.00045205,30]
[391987104,1761059449438,-500.0,0.00045205,120]
[391987105,1761059449451,-509.91762368,0.00045205,2]
[391987106,1761059449460,-1320.22,0.00045205,3]
[391987107,1761059449470,-500.0,0.00045205,120]
[391987108,1761059449479,-500.0,0.00045205,120]
[391987109,1761059449489,-157.45240611,0.0004524,120]
[391987110,1761059449499,-2151.0,0.00045283,5]
[391987111,1761059449508,-1457.6,0.00045479,2]
[391987112,1761059449520,-500.0,0.00045479,120]
[391987113,1761059449530,-500.0,0.00045479,120]
[391987114,1761059449539,-500.0,0.00045479,120]
[391987115,1761059449548,-500.0,0.00045479,30]
[391987116,1761059449582,-500.0,0.00045479,120]
[391987117,1761059449591,-1320.22,0.00045479,3]
[391987118,1761059449601,-500.0,0.00045479,120]
[391987119,1761059449611,-500.0,0.00045479,120]
[391987120,1761059449620,-1457.6,0.00045753,2]
[391987121,1761059449630,-500.0,0.00045753,120]
[391987122,1761059449639,-500.0,0.00045753,120]
[391987123,1761059449648,-500.0,0.00045753,120]
[391987124,1761059449658,-500.0,0.00045753,30]
[391987125,1761059449668,-500.0,0.00045753,120]
[391987126,1761059449677,-1320.22,0.00045753,3]
[391987127,1761059449686,-500.0,0.00045753,120]
[391987128,1761059449696,-500.0,0.00045753,120]
[391987129,1761059449705,-157.45240611,0.00045766,120]
[391987130,1761059449715,-150.0,0.00045801,2]
[391987131,1761059449724,-150.0,0.00045801,2]
[391987132,1761059449734,-983.0,0.00045801,2]
[391987133,1761059449744,-500.0,0.00046004,17]
[391987134,1761059449754,-500.0,0.00046004,17]
[391987135,1761059449763,-1457.6,0.00046027,2]
[391987136,1761059449774,-500.0,0.00046027,120]
[391987137,1761059449784,-500.0,0.00046027,120]
[391987138,1761059449793,-500.0,0.00046027,120]
[391987139,1761059449802,-500.0,0.00046027,30]
[391987140,1761059449813,-500.0,0.00046027,120]
[391987141,1761059449822,-1320.22,0.00046027,3]
[391987142,1761059449832,-500.0,0.00046027,120]
[391987143,1761059449841,-500.0,0.00046027,120]
[391987144,1761059449851,-158.46756255,0.0004611,120]
[391987145,1761059449860,-166.135178,0.00046203,20]
[391987146,1761059449869,-160.804175,0.00046203,20]
[391987147,1761059449879,-161.151474,0.00046203,20]
[391987148,1761059449888,-163.900878,0.00046203,20]
[391987149,1761059449898,-157.45240611,0.00046292,120]
[391987150,1761059449907,-1457.6,0.00046301,2]
[391987151,1761059449917,-500.0,0.00046301,120]
[391987152,1761059449926,-500.0,0.00046301,120]
[391987153,1761059449936,-500.0,0.00046301,120]
[391987154,1761059449945,-500.0,0.00046301,30]
[391987155,1761059449956,-500.0,0.00046301,120]
[391987156,1761059449965,-1320.22,0.00046301,3]
[391987157,1761059449975,-500.0,0.00046301,120]
[391987158,1761059449985,-500.0,0.00046301,120]
[391987159,1761059449994,-1015.3,0.000464,14]
[391987160,1761059450004,-1457.6,0.00046575,2]
[391987161,1761059450013,-500.0,0.00046575,120]
[391987162,1761059450024,-500.0,0.00046575,120]
[391987163,1761059450034,-500.0,0.00046575,120]